bitfinex/quotes_ETHUSD_20251215
["timestamp","ask_amount","ask_price","bid_price","bid_amount"]
[1765816079520,34.47464888,3011.8,3011.7,0.002]
[1765816079730,22.96111988,3011.8,3011.7,0.002]
[1765816079919,19.79828388,3011.8,3011.7,0.002]
[1765816080091,4.47464888,3011.8,3011.7,0.002]
[1765816080694,0.0856,3011.8,3011.7,0.002]
[1765816080895,3.35933179,3012.6,3011.7,0.4924]
[1765816080896,3.405466,3012.1,3011.7,0.4924]
[1765816081117,0.4924,3012.5,3011.7,0.002]
[1765816081505,0.0856,3011.8,3011.7,0.002]
[1765816081908,0.5739,3011.8,3011.7,0.002]
[1765816082326,3.81714543,3012.3,3011.7,0.002]
[1765816082829,3.81714543,3012.3,3011.7,0.03520383]
[1765816082830,0.001,3012.3,3011.7,0.03520383]
[1765816083028,0.001,3012.3,3011.7,0.002]
[1765816083194,4.258465,3011.8,3011.7,0.002]
[1765816083395,16.06196372,3011.8,3011.7,0.002]
[1765816083595,19.49713731,3011.8,3011.7,0.002]
[1765816083820,11.9224506,3011.8,3011.7,0.0012]
[1765816084020,8.2326666,3011.8,3011.7,0.0012]
[1765816084221,8.05649488,3011.8,3011.7,0.0012]
[1765816084420,11.42911688,3011.8,3011.7,0.0012]
[1765816085124,11.42911688,3011.8,3011.3,0.002]
[1765816085125,30.4628,3011.4,3011.3,0.00152068]
[1765816085325,37.74302733,3011.4,3011.3,0.00152068]
[1765816085527,8.6165339,3011.4,3011.3,0.00152068]
[1765816086330,7.6944869,3011.4,3011.3,0.00152068]
[1765816086713,6.5963649,3011.4,3011.3,0.00152068]
[1765816087435,8.4226219,3011.4,3011.3,0.00152068]
[1765816087755,0.5769,3011.4,3011.3,0.00152068]
[1765816088051,0.4628,3011.4,3011.3,0.00152068]
[1765816088201,0.15397572,3011.8,3011.3,0.00152068]
[1765816088202,0.1141,3011.8,3011.3,0.00152068]
[1765816088402,3.85615141,3012.2,3011.3,0.00152068]
[1765816088604,7.13615138,3012.2,3011.3,0.00152068]
[1765816088799,6.907542,3012.0,3011.3,0.00152068]
[1765816089001,0.0808,3011.4,3011.3,0.00152068]
[1765816089401,0.4964,3012.0,3011.3,0.00152068]
[1765816090002,3.32077095,3012.3,3011.3,0.00152068]
[1765816090202,0.4974,3012.3,3011.3,0.00152068]
[1765816090641,3.81717199,3012.3,3011.3,0.00152068]
[1765816090942,4.257358,3012.2,3011.3,0.00152068]
[1765816091105,0.4964,3012.2,3011.3,0.00152068]
[1765816091307,0.4956,3012.2,3011.3,0.00152068]
[1765816091703,3.81551188,3012.2,3011.3,0.00152068]
[1765816091910,0.4956,3012.2,3011.3,0.00152068]
[1765816092412,0.001,3012.3,3011.4,0.4793]
[1765816092959,6.64045354,3012.3,3011.3,0.58199597]
[1765816093146,0.001,3012.3,3011.4,0.4793]
[1765816093736,0.08,3011.5,3011.3,0.00152068]
[1765816094057,6.201222,3011.4,3011.3,0.00152068]
[1765816094259,16.377274,3011.4,3011.3,0.00152068]
[1765816094431,9.094297,3011.4,3011.3,0.00152068]
[1765816094628,9.19046872,3011.4,3011.3,0.00152068]
[1765816094834,0.66837172,3011.4,3011.3,0.00152068]
[1765816095033,0.4922,3011.4,3011.3,0.00152068]
[1765816096491,0.4964,3011.9,3011.3,0.00152068]
[1765816097164,3.319862,3012.2,3011.3,0.00152068]
[1765816097165,0.001,3012.3,3011.3,0.48082068]
[1765816097864,0.001,3012.3,3012.2,0.6529]
[1765816098066,0.001,3012.3,3012.2,4.56160797]
[1765816098237,0.001,3012.3,3012.2,6.07113651]
[1765816098577,0.001,3012.3,3012.2,6.47664051]
[1765816098758,0.001,3012.3,3012.2,6.44344219]
[1765816100077,0.001,3012.3,3012.2,6.03793819]
[1765816100289,0.001,3012.3,3012.2,6.44344219]
[1765816102072,0.001,3012.3,3012.2,4.56160797]
[1765816104398,0.001,3012.3,3012.2,3.90030797]
[1765816105056,0.001,3012.3,3012.2,3.31983268]
[1765816106383,0.001,3012.3,3012.2,4.303231]
[1765816106589,0.001,3012.3,3012.2,4.27003268]
[1765816106879,0.001,3012.3,3012.2,5.02903014]
[1765816107085,0.001,3012.3,3012.2,4.07883014]
[1765816107453,0.001,3012.3,3012.2,3.31983268]
[1765816107686,0.4638,3012.3,3011.6,0.182]
[1765816107885,0.0009,3012.2,3011.7,3.32030824]
[1765816108186,0.0009,3012.2,3011.8,3.32019531]
[1765816108554,0.4973,3012.2,3012.1,0.002]
[1765816109956,27.79314629,3012.2,3012.1,0.002]
[1765816110160,3.11136629,3012.2,3012.1,0.002]
[1765816110706,6.43119897,3012.2,3012.1,0.002]
[1765816110863,5.85072368,3012.2,3012.1,0.002]
[1765816111062,0.0009,3012.2,3012.1,0.002]
[1765816111262,3.32073268,3012.2,3012.1,0.002]
[1765816111562,3.78793268,3012.2,3012.1,0.002]
[1765816111725,0.001,3012.3,3012.1,0.002]
[1765816114801,0.0002,3012.3,3012.1,0.002]
[1765816115986,0.532,3012.2,3012.1,0.002]
[1765816116510,0.532,3012.2,3012.1,0.9384]
[1765816116711,0.532,3012.2,3012.1,3.80024289]
[1765816116877,0.532,3012.2,3012.1,3.32194289]
[1765816117618,0.532,3012.2,3012.1,4.92274234]
[1765816118814,0.0002,3012.3,3012.1,8.82316052]
[1765816118984,0.0002,3012.3,3012.2,1.51687529]
[1765816119686,0.0002,3012.3,3012.2,1.05877529]
[1765816119881,0.0002,3012.3,3012.2,1.51687529]
[1765816120113,0.0002,3012.3,3012.2,2.7313965]
[1765816120797,0.0002,3012.3,3012.2,6.05122918]
[1765816123314,0.0002,3012.3,3012.2,3.90030797]
[1765816123817,0.0002,3012.3,3012.2,3.31983268]
[1765816124220,0.0002,3012.3,3012.1,0.002]
[1765816124725,0.5527,3012.2,3012.1,0.002]
[1765816125232,3.87253268,3012.2,3012.1,0.002]
[1765816126102,6.05656968,3012.2,3012.1,0.002]
[1765816126830,34.45300797,3012.2,3012.1,0.002]
[1765816126991,33.67015897,3012.2,3012.1,0.002]
[1765816127189,26.80885397,3012.2,3012.1,0.002]
[1765816127417,8.65272997,3012.2,3012.1,0.002]
[1765816127620,4.45300797,3012.2,3012.1,0.002]
[1765816127926,3.87253268,3012.2,3012.1,0.002]
[1765816128087,0.0986,3012.2,3012.1,0.002]
[1765816128287,18.95264597,3012.2,3012.1,0.002]
[1765816128493,28.83641897,3012.2,3012.1,0.002]
[1765816128797,22.202931,3012.1,3012.0,0.002]
[1765816129022,18.049411,3012.1,3012.0,0.002]
[1765816129226,7.70960989,3012.1,3012.0,0.002]
[1765816129530,34.98671818,3012.1,3012.0,0.002]
[1765816129732,33.53970618,3012.1,3012.0,0.002]
[1765816130093,30.59409318,3012.1,3012.0,0.002]
[1765816130498,34.98671818,3012.1,3012.0,0.002]
[1765816131535,32.89949818,3012.1,3012.0,0.002]
[1765816132233,9.84456018,3012.1,3012.0,0.002]
[1765816132599,21.15898218,3012.1,3012.0,0.002]
[1765816133547,4.98671818,3012.1,3012.0,0.002]
[1765816133704,23.69923718,3012.1,3012.0,0.002]
[1765816133902,23.40386418,3012.1,3012.0,0.002]
[1765816134612,34.45471818,3012.1,3012.0,0.002]
[1765816134933,34.98671818,3012.1,3012.0,0.002]
[1765816135234,34.98771818,3012.1,3012.0,0.002]
[1765816137043,0.58047529,3011.6,3011.3,0.00152068]
[1765816137205,3.496,3011.7,3011.3,0.00152068]
[1765816137206,30.67707529,3011.4,3011.3,0.00152068]
[1765816137408,33.9977899,3011.4,3011.3,0.00152068]
[1765816137607,34.4517899,3011.4,3011.3,0.00152068]
[1765816137904,34.4509899,3011.4,3011.3,0.00152068]
[1765816138548,34.49086562,3011.4,3011.3,0.00152068]
[1765816138748,8.77665762,3011.4,3011.3,0.00152068]
[1765816138917,6.79317162,3011.4,3011.3,0.00152068]
[1765816139716,34.49086562,3011.4,3011.3,0.00152068]
[1765816141733,13.68889833,3011.4,3011.3,0.00152068]
[1765816142046,0.532,3011.5,3011.3,0.00152068]
[1765816142629,0.0602,3011.4,3011.3,0.00152068]
[1765816142945,0.0645,3011.4,3011.3,0.00152068]
[1765816143144,0.5503,3011.4,3011.3,0.00152068]
[1765816143341,0.0645,3011.4,3011.3,0.00152068]
[1765816143512,0.0687,3011.4,3011.3,0.00152068]
[1765816143836,11.38146161,3011.4,3011.3,0.00152068]
[1765816144443,33.91099033,3011.4,3011.3,0.00152068]
[1765816144745,13.17921562,3011.4,3011.3,0.00152068]
[1765816144942,20.20276679,3011.4,3011.3,0.00152068]
[1765816145238,23.69876679,3011.4,3011.3,0.00152068]
[1765816145437,45.01101679,3011.4,3011.3,0.00152068]
[1765816147929,45.41652079,3011.4,3011.3,0.00152068]
[1765816149918,38.39296962,3011.4,3011.3,0.00152068]
[1765816150117,45.41652079,3011.4,3011.3,0.00152068]
[1765816150318,45.41752079,3011.4,3011.3,0.00152068]
[1765816151565,41.92152079,3011.4,3011.3,0.00152068]
[1765816151844,33.91199033,3011.4,3011.3,0.00152068]
[1765816152021,33.38806933,3011.4,3011.3,0.00152068]
[1765816152214,21.44342633,3011.4,3011.3,0.00152068]
[1765816152420,22.02390162,3011.4,3011.3,0.00152068]
[1765816152615,34.89796962,3011.4,3011.3,0.00152068]
[1765816152851,33.91199033,3011.4,3011.3,0.00152068]
[1765816153064,34.89796962,3011.4,3011.3,0.00152068]
[1765816153439,25.47335262,3011.4,3011.3,0.00152068]
[1765816153769,8.63151033,3011.4,3011.3,0.00152068]
[1765816154126,9.21198562,3011.4,3011.3,0.00152068]
[1765816154348,6.67285033,3011.4,3011.3,0.00152068]
[1765816154549,4.4525899,3011.4,3011.3,0.00152068]
[1765816154750,0.0697,3011.4,3011.3,0.00152068]
[1765816154955,4.40411461,3011.4,3011.3,0.00152068]
[1765816155337,17.88487261,3011.4,3011.3,0.00152068]
[1765816155545,4.40411461,3011.4,3011.3,0.00152068]
[1765816155943,1.0834,3011.4,3011.3,0.00152068]
[1765816156257,4.40411461,3011.4,3011.3,0.00152068]
[1765816156456,1.0834,3011.4,3011.3,0.00152068]
[1765816156641,4.40411461,3011.4,3011.3,0.00152068]
[1765816157063,0.6017,3011.4,3011.3,0.00152068]
[1765816157577,0.533,3011.4,3011.3,0.00152068]
[1765816158282,0.533,3011.4,3011.3,0.35317627]
[1765816159163,0.533,3011.4,3011.3,0.80617627]
[1765816159379,0.533,3011.4,3011.3,1.26837627]
[1765816159945,0.533,3011.4,3011.3,4.58920116]
[1765816161146,0.5322,3011.4,3011.3,4.58920116]
[1765816161580,0.5322,3011.4,3011.3,3.67400116]
[1765816161967,0.5322,3011.4,3011.3,0.35317627]
[1765816162271,0.5924,3011.4,3011.3,0.00152068]
[1765816162570,3.91311461,3011.4,3011.3,0.00152068]
[1765816162940,4.40321461,3011.4,3011.3,0.00152068]
[1765816163141,19.65651561,3011.4,3011.3,0.00152068]
[1765816163336,20.06201961,3011.4,3011.3,0.00152068]
[1765816163540,20.10189533,3011.4,3011.3,0.00152068]
[1765816163969,16.44941662,3011.4,3011.3,0.00152068]
[1765816164269,7.43215662,3011.4,3011.3,0.00152068]
[1765816165253,35.42906962,3011.4,3011.3,0.00152068]
[1765816166373,30.55286362,3011.4,3011.3,0.00152068]
[1765816167246,38.92506962,3011.4,3011.3,0.00152068]
[1765816167446,38.92506962,3011.4,3010.9,1e-08]
[1765816167447,30.410404,3011.0,3010.9,1e-08]
[1765816167646,38.54643046,3011.0,3010.9,1e-08]
[1765816167859,38.46035517,3011.0,3010.9,1e-08]
[1765816168057,39.04083046,3011.0,3010.9,1e-08]
[1765816168281,42.36198622,3011.0,3010.9,1e-08]
[1765816170093,34.44080677,3011.0,3010.9,1e-08]
[1765816170398,34.97280677,3011.0,3010.9,1e-08]
[1765816170590,35.37831077,3011.0,3010.9,1e-08]
[1765816171391,41.52094733,3011.0,3010.9,1e-08]
[1765816171605,30.405504,3010.6,3010.5,0.002]
[1765816171890,31.52287929,3010.6,3010.5,0.002]
[1765816172181,32.01577929,3010.6,3010.5,0.002]
[1765816172371,35.33737631,3010.6,3010.5,0.002]
[1765816172553,35.37725203,3010.6,3010.5,0.002]
[1765816172964,42.10036388,3010.6,3010.5,0.002]
[1765816173983,45.4219609,3010.6,3009.4,0.002]
[1765816174286,34.3530727,3010.4,3009.4,0.002]
[1765816174452,0.405504,3010.1,3009.4,0.002]
[1765816174655,37.66641585,3010.1,3009.4,0.002]
[1765816174856,38.73979114,3010.1,3009.4,0.002]
[1765816175686,31.48467929,3010.1,3009.4,0.002]
[1765816175898,32.01667929,3010.1,3009.4,0.002]
[1765816176314,3.72798389,3009.8,3009.4,0.002]
[1765816176608,30.98597929,3009.6,3009.4,0.002]
[1765816176898,31.56827929,3009.6,3009.4,0.002]
[1765816177095,32.06117929,3009.6,3009.4,0.002]
[1765816177292,8.47671129,3009.6,3009.4,0.002]
[1765816177585,32.06117929,3009.6,3009.4,0.002]
[1765816178288,35.38387998,3009.6,3009.4,0.002]
[1765816180088,0.98597929,3009.5,3009.4,0.002]
[1765816180288,34.8482661,3009.5,3009.4,0.002]
[1765816180788,30.98597929,3009.3,3009.2,0.002]
[1765816180991,37.75889114,3009.3,3009.2,0.002]
[1765816181176,38.25179114,3009.3,3009.2,0.002]
[1765816182260,41.57482307,3009.3,3009.2,0.002]
[1765816182597,41.61469879,3009.3,3009.2,0.002]
[1765816183870,42.14669879,3009.3,3009.2,0.002]
[1765816184395,42.14589879,3009.3,3009.2,0.002]
[1765816188097,45.64189879,3009.3,3009.2,0.002]
[1765816188808,45.64189879,3009.3,3008.3,0.002]
[1765816188809,4.48197929,3008.8,3008.3,0.002]
[1765816189004,4.48197929,3008.8,3006.5,0.1931]
[1765816189005,0.405504,3007.9,3006.1,3.3265103]
[1765816189202,24.85221629,3007.2,3005.8,0.02]
[1765816189401,0.405504,3006.8,3005.5,0.1931]
[1765816189569,21.665624,3006.8,3005.9,3.32675012]
[1765816189775,3.04851,3006.8,3006.2,3.32641064]
[1765816189973,3.58051,3006.8,3006.1,3.51964196]
[1765816190200,3.58051,3006.8,3006.1,0.1931]
[1765816190377,3.58051,3006.8,3005.4,3.8198782]
[1765816190584,6.90630486,3006.8,3005.6,7.23472069]
[1765816191116,6.90630486,3006.8,3005.6,6.6542454]
[1765816192279,7.93215987,3006.8,3005.6,6.6542454]
[1765816192786,6.99465587,3006.8,3005.6,10.4739681]
[1765816192998,7.52765587,3006.8,3005.6,7.1468454]
[1765816194006,0.51557572,3006.8,3006.1,0.1931]
[1765816194200,0.1357,3007.2,3006.1,0.1931]
[1765816194201,0.1357,3007.2,3006.6,0.002]
[1765816194398,0.533,3007.1,3006.6,0.002]
[1765816194714,0.0565,3006.8,3006.6,0.002]
[1765816194913,0.57287572,3007.1,3006.6,0.002]
[1765816195124,1.06577572,3007.1,3006.6,0.002]
[1765816195913,4.39124922,3007.1,3006.6,0.002]
[1765816196214,0.57287572,3007.1,3006.6,0.002]
[1765816196413,1.06577572,3007.1,3006.6,0.002]
[1765816196889,0.57287572,3007.1,3006.6,0.002]
[1765816197387,0.533,3007.1,3006.8,0.4926]
[1765816198087,0.03987572,3007.8,3006.8,0.4926]
[1765816198088,0.03987572,3007.8,3007.0,0.4621]
[1765816198324,0.533,3007.7,3007.0,0.4621]
[1765816198919,0.4929,3007.6,3007.0,3.32554098]
[1765816199229,0.53277572,3007.6,3007.0,0.66512017]
[1765816199393,6.620362,3007.5,3006.7,3.32782732]
[1765816199593,6.620362,3007.5,3006.9,3.32561532]
[1765816199594,0.4929,3007.5,3006.9,3.32561532]
[1765816199799,0.4929,3007.5,3006.7,0.002]
[1765816199800,6.237384,3007.5,3006.7,0.002]
[1765816200010,0.4929,3007.5,3007.0,3.32555674]
[1765816200317,0.1357,3007.9,3007.0,3.32555674]
[1765816200318,0.62035101,3008.2,3007.4,0.4621]
[1765816200519,0.533,3007.9,3007.4,0.4621]
[1765816200720,0.533,3007.9,3007.5,3.32502078]
[1765816200928,0.533,3007.9,3007.6,0.37871208]
[1765816201226,0.03987572,3008.2,3007.6,0.37871208]
[1765816201227,0.1909,3008.9,3007.8,0.4621]
[1765816201527,0.533,3008.8,3008.1,0.4621]
[1765816201691,0.533,3008.8,3007.7,0.4633]
[1765816201893,0.533,3008.8,3007.6,0.37871208]
[1765816201894,9.891842,3008.6,3007.6,0.37871208]
[1765816202216,0.70067572,3008.7,3007.7,0.03324799]
[1765816202217,0.03987572,3008.7,3007.7,0.03324799]
[1765816202433,15.077454,3008.6,3007.6,0.37871208]
[1765816202632,3.848994,3008.5,3007.6,0.37871208]
[1765816202935,0.533,3008.4,3007.7,6.64959936]
[1765816203131,0.479,3008.5,3007.7,6.64959936]
[1765816203803,3.32353339,3008.9,3007.8,0.4633]
[1765816204001,0.03987572,3009.0,3007.8,1.04377529]
[1765816204246,8.82658,3008.9,3007.9,1.4342974]
[1765816204531,0.03987572,3008.8,3007.9,1.4342974]
[1765816204700,23.315104,3008.5,3007.7,3.32479968]
[1765816204887,0.2369,3007.8,3007.1,3.32541245]
[1765816205087,0.03987572,3008.2,3007.4,6.65024539]
[1765816205446,0.479,3008.1,3007.4,3.32511405]
[1765816206266,0.479,3008.1,3006.8,0.002]
[1765816206411,0.0703,3007.5,3007.0,3.32554469]
[1765816206814,0.0703,3007.5,3006.9,0.58047529]
[1765816206815,0.479,3008.1,3007.1,0.4633]
[1765816207109,0.03987572,3008.4,3007.2,0.03325352]
[1765816207336,7.16696843,3008.4,3007.3,0.4633]
[1765816207639,0.479,3008.4,3007.0,0.405504]
[1765816207844,3.80226266,3008.4,3007.0,0.405504]
[1765816208042,3.80226266,3008.4,3006.8,0.002]
[1765816208043,0.03987572,3007.9,3006.8,0.002]
[1765816208212,0.03987572,3007.7,3006.8,0.002]
[1765816209019,3.36473483,3007.7,3006.8,0.002]
[1765816209247,0.03987572,3007.7,3006.8,0.002]
[1765816209538,3.36469675,3007.7,3006.8,0.002]
[1765816209711,0.03987572,3007.7,3006.9,1.50780164]
[1765816210114,3.36467553,3007.7,3006.9,1.04450164]
[1765816210314,3.36467553,3007.7,3006.8,0.002]
[1765816210315,7.16847534,3007.7,3006.8,0.002]
[1765816210517,0.2262,3006.9,3006.8,0.002]
[1765816211117,0.03987572,3007.7,3006.8,0.98025794]
[1765816211338,0.1568,3007.9,3006.9,0.405504]
[1765816211546,0.1568,3007.9,3006.9,0.4633]
[1765816212117,7.75473172,3007.8,3006.8,0.002]
[1765816212319,0.0703,3006.9,3006.8,0.002]
[1765816212542,3.710764,3006.9,3006.8,0.002]
[1765816212746,0.0703,3006.9,3006.8,0.002]
[1765816212951,19.5589969,3007.2,3006.8,0.002]
[1765816213257,0.0744,3006.9,3006.8,0.002]
[1765816213463,14.763025,3006.9,3006.8,0.002]
[1765816213756,11.183113,3006.9,3006.8,0.002]
[1765816213956,7.101106,3006.9,3006.8,0.002]
[1765816214254,13.89963729,3006.9,3006.8,0.002]
[1765816214562,14.79764129,3006.9,3006.8,0.002]
[1765816214853,9.42678829,3006.9,3006.8,0.002]
[1765816215057,4.45145954,3006.9,3006.8,0.002]
[1765816215354,8.95694429,3006.9,3006.8,0.002]
[1765816215555,14.61862854,3006.9,3006.8,0.002]
[1765816215761,11.33282001,3006.9,3006.8,0.002]
[1765816216059,10.53450426,3006.9,3006.8,0.002]
[1765816216365,0.69475101,3006.9,3006.8,0.002]
[1765816216520,0.11427572,3006.9,3006.8,0.002]
[1765816216716,0.58517572,3006.9,3006.8,0.002]
[1765816216916,0.03987572,3006.9,3006.8,0.002]
[1765816217121,0.58517572,3006.9,3006.8,0.002]
[1765816217348,0.03987572,3006.9,3006.8,0.002]
[1765816218019,0.03987572,3007.1,3006.8,0.002]
[1765816218220,3.84435137,3007.1,3006.8,0.002]
[1765816218419,0.0703,3006.9,3006.8,0.002]
[1765816218646,1.12567529,3006.9,3006.8,0.002]
[1765816218946,1.16555101,3006.9,3006.8,0.002]
[1765816219453,0.11017572,3006.9,3006.8,0.002]
[1765816219663,34.49123526,3006.9,3006.8,0.002]
[1765816219821,34.66740698,3006.9,3006.8,0.002]
[1765816220448,0.405504,3006.7,3006.6,0.002]
[1765816220647,31.45847929,3006.7,3006.6,0.002]
[1765816220851,11.33120429,3006.7,3006.6,0.002]
[1765816221463,7.90728476,3006.7,3006.6,0.002]
[1765816221682,20.64485076,3006.7,3006.6,0.002]
[1765816221963,20.31190976,3006.7,3006.6,0.002]
[1765816222164,16.19671576,3006.7,3006.6,0.002]
[1765816222723,16.86216576,3006.7,3006.6,0.002]
[1765816222921,3.28619801,3006.7,3006.6,0.002]
[1765816223126,3.44298101,3006.7,3006.6,0.002]
[1765816223446,7.17439048,3006.7,3006.6,0.002]
[1765816223657,31.93695448,3006.7,3006.6,0.002]
[1765816224028,28.85388548,3006.7,3006.6,0.002]
[1765816224287,28.18800348,3006.7,3006.6,0.002]
[1765816224782,34.89696048,3006.7,3006.6,0.002]
[1765816225555,16.76391748,3006.7,3006.6,0.002]
[1765816225757,10.86673748,3006.7,3006.6,0.002]
[1765816225981,4.49145648,3006.7,3006.6,0.002]
[1765816226180,24.77053948,3006.7,3006.6,0.002]
[1765816226460,22.47957348,3006.7,3006.6,0.002]
[1765816226690,4.49145648,3006.7,3006.6,0.002]
[1765816226850,3.35784601,3006.7,3006.6,0.002]
[1765816227169,4.41875648,3006.7,3006.6,0.002]
[1765816227374,31.48490148,3006.7,3006.6,0.002]
[1765816227566,25.78171348,3006.7,3006.6,0.002]
[1765816227768,26.18721748,3006.7,3006.6,0.002]
[1765816227973,6.92761048,3006.7,3006.6,0.002]
[1765816228179,7.90967948,3006.7,3006.6,0.002]
[1765816229092,18.13435248,3006.7,3006.6,0.002]
[1765816229263,18.20705248,3006.7,3006.6,0.002]
[1765816229466,6.67196848,3006.7,3006.6,0.002]
[1765816229876,7.34699148,3006.7,3006.6,0.002]
[1765816230097,14.48870039,3006.7,3006.6,0.002]
[1765816230263,30.98597929,3006.6,3006.5,0.002]
[1765816230591,0.98597929,3006.1,3005.5,0.002]
[1765816230881,0.217,3005.6,3005.5,0.002]
[1765816231088,0.1589,3005.8,3005.6,3.32706852]
[1765816231263,0.1589,3005.8,3005.5,0.002]
[1765816231463,0.4862,3005.6,3005.5,0.002]
[1765816231868,0.5494,3005.6,3005.5,0.002]
[1765816232586,10.53916629,3005.6,3005.5,0.002]
[1765816232763,14.03516629,3005.6,3005.5,0.002]
[1765816232963,10.53916629,3005.6,3005.5,0.002]
[1765816233159,3.45417429,3005.6,3005.5,0.002]
[1765816233485,29.47181799,3005.6,3005.5,0.002]
[1765816234089,18.24000499,3005.6,3005.5,0.002]
[1765816234594,34.86250199,3005.6,3005.5,0.002]
[1765816234796,35.03867371,3005.6,3005.5,0.002]
[1765816234967,33.43507571,3005.6,3005.5,0.002]
[1765816235162,4.45699799,3005.6,3005.5,0.002]
[1765816235689,9.80658899,3005.6,3005.5,0.002]
[1765816236265,34.45699799,3005.6,3005.5,0.002]
[1765816236575,34.86250199,3005.6,3005.5,0.002]
[1765816240095,0.405504,3005.1,3004.3,0.002]
[1765816240267,14.069461,3004.4,3004.3,0.002]
[1765816240467,14.04293629,3004.4,3004.3,0.002]
[1765816240686,1.29877529,3004.4,3004.3,0.002]
[1765816241268,24.95331229,3004.4,3004.3,0.002]
[1765816241566,22.63164229,3004.4,3004.3,0.002]
[1765816241772,25.96009389,3004.4,3004.3,0.002]
[1765816241966,23.91946889,3004.4,3004.3,0.002]
[1765816242503,24.22164489,3004.4,3004.3,0.002]
[1765816242668,23.88846889,3004.4,3004.3,0.002]
[1765816243087,18.99868089,3004.4,3004.3,0.002]
[1765816243724,4.62552689,3004.4,3004.3,0.002]
[1765816244322,8.31370489,3004.4,3004.3,0.002]
[1765816244488,18.13888989,3004.4,3004.3,0.002]
[1765816244688,12.65120289,3004.4,3004.3,0.002]
[1765816244883,31.98698989,3004.4,3004.3,0.002]
[1765816245117,31.43911489,3004.4,3004.3,0.002]
[1765816246516,34.62552689,3004.4,3004.3,0.002]
[1765816247308,33.40401389,3004.4,3004.3,0.002]
[1765816247518,31.07901389,3004.4,3004.3,0.002]
[1765816248127,31.48451789,3004.4,3004.3,0.002]
[1765816248412,3.32794438,3004.9,3004.3,0.002]
[1765816248413,0.486,3004.9,3004.3,0.002]
[1765816248598,2.86698,3004.8,3004.3,0.002]
[1765816248802,3.947295,3004.9,3004.3,0.002]
[1765816249120,3.32701201,3005.7,3004.3,0.002]
[1765816249288,2.864809,3005.6,3004.8,0.4752]
[1765816249484,0.4727,3004.9,3004.3,0.002]
[1765816250218,0.0765,3004.4,3004.3,0.002]
[1765816250517,3.624491,3004.4,3004.3,0.002]
[1765816250929,0.0765,3004.4,3004.3,0.002]
[1765816251224,0.5452,3004.4,3004.3,0.002]
[1765816251395,0.0765,3004.4,3004.3,0.002]
[1765816251792,0.5452,3004.4,3004.3,0.002]
[1765816252236,0.0765,3004.4,3004.3,0.002]
[1765816253102,10.81494,3005.0,3004.3,0.002]
[1765816253332,0.486,3005.1,3004.3,0.002]
[1765816253533,0.0634,3004.4,3004.3,0.002]
[1765816253821,17.807988,3004.4,3004.3,0.002]
[1765816254009,1.06647529,3005.0,3004.3,0.002]
[1765816254210,0.58047529,3005.1,3004.3,0.002]
[1765816254421,3.32757895,3005.2,3004.4,0.66613464]
[1765816254723,2.345858,3005.3,3004.4,1.15723464]
[1765816255019,0.533,3005.2,3004.4,0.66613464]
[1765816255218,1.019,3005.2,3004.4,0.66613464]
[1765816255425,0.0634,3004.5,3004.4,0.66613464]
[1765816255721,0.5964,3004.5,3004.3,0.002]
[1765816255924,0.533,3004.5,3004.3,0.002]
[1765816256223,23.707738,3004.4,3004.3,0.002]
[1765816256415,30.98597929,3004.3,3004.2,0.002]
[1765816256616,31.70965101,3004.3,3004.2,0.002]
[1765816256816,31.57335501,3004.3,3004.2,0.002]
[1765816256997,28.51470601,3004.3,3004.2,0.002]
[1765816257315,11.53574101,3004.3,3004.2,0.002]
[1765816257516,5.64868701,3004.3,3004.2,0.002]
[1765816258099,16.20018301,3004.3,3004.2,0.002]
[1765816258297,15.34999068,3004.3,3004.2,0.002]
[1765816258498,7.89566968,3004.3,3004.2,0.002]
[1765816258699,4.98953768,3004.3,3004.2,0.002]
[1765816258898,7.43948068,3004.3,3004.2,0.002]
[1765816259102,4.98953768,3004.3,3004.2,0.002]
[1765816259418,9.30965768,3004.3,3004.2,0.002]
[1765816260225,4.98953768,3004.3,3004.2,0.002]
[1765816260601,13.38238368,3004.3,3004.2,0.002]
[1765816260920,13.78788768,3004.3,3004.2,0.002]
[1765816261133,20.59135468,3004.3,3004.2,0.002]
[1765816262138,9.75657968,3004.3,3004.2,0.002]
[1765816262338,0.5945,3004.3,3004.2,0.002]
[1765816262507,0.533,3004.3,3004.2,0.002]
[1765816262706,0.533,3004.3,3004.2,0.9856]
[1765816263140,0.533,3004.3,3004.2,0.002]
[1765816263301,3.91276239,3004.3,3004.2,0.002]
[1765816263501,5.5667134,3004.3,3004.1,0.002]
[1765816263702,0.405504,3003.7,3002.3,3.33071145]
[1765816264012,8.558059,3003.1,3002.3,3.33071145]
[1765816264206,9.091059,3003.1,3001.9,0.1843]
[1765816264420,13.59453073,3003.1,3001.9,0.1843]
[1765816264619,13.59453073,3003.1,3001.9,3.33122355]
[1765816264820,21.85143373,3003.1,3001.9,3.33122355]
[1765816265435,21.85143373,3003.1,3001.8,3.33130485]
[1765816265605,1.12857529,3003.1,3002.1,0.1988]
[1765816265810,5.39697173,3003.1,3001.9,3.33122355]
[1765816266113,5.16763945,3003.1,3002.1,0.1988]
[1765816266296,5.16763945,3003.1,3002.2,3.33089068]
[1765816266500,4.99146773,3003.1,3002.2,6.66178136]
[1765816266732,1.66157529,3003.1,3002.2,6.66178136]
[1765816267031,1.0811,3003.1,3002.2,6.66178136]
[1765816267431,0.533,3003.1,3002.4,0.4956]
[1765816268042,0.8918,3003.1,3002.2,6.66178136]
[1765816268216,4.41099244,3003.1,3002.2,6.66178136]
[1765816268416,19.40004144,3003.1,3002.2,3.33089068]
[1765816268653,1.12857529,3003.1,3002.2,6.66178136]
[1765816268944,9.79326473,3003.1,3002.1,3.33098586]
[1765816269101,9.79326473,3003.1,3002.1,6.66198749]